bitfinex/quotes_ETHUSD_20220227
["timestamp","ask_amount","ask_price","bid_price","bid_amount"]
[1645987502256,0.02227671,2760.8,2760.7,1.14872338]
[1645987506900,0.02227671,2760.8,2760.3,1.14872338]
[1645987507102,0.02227671,2760.8,2760.4,0.00591071]
[1645987508102,0.02227671,2760.8,2760.2,0.00096]
[1645987508402,0.02227671,2760.8,2760.4,0.0059105]
[1645987508842,0.02227671,2760.8,2759.9,1.49251549]
[1645987509043,0.90663,2760.6,2759.9,1.49251549]
[1645987509243,0.90663,2760.6,2760.4,0.63679016]
[1645987511949,0.91253985,2760.6,2760.4,0.63679016]
[1645987512620,5.31363,2760.5,2760.4,0.06081514]
[1645987512802,0.01930162,2760.3,2760.2,0.63679016]
[1645987513001,21.0,2760.2,2759.7,0.00096]
[1645987513201,4.021,2760.1,2759.3,0.00096]
[1645987513401,12.49504254,2760.0,2759.0,1.122552]
[1645987513600,1.37967138,2759.8,2759.0,1.122552]
[1645987514601,1.37967138,2759.8,2758.8,1.372552]
[1645987514602,4.40703,2759.7,2758.8,1.372552]
[1645987514803,6.22803,2759.7,2758.5,1.122552]
[1645987515006,0.90731,2759.4,2758.5,1.122552]
[1645987515210,0.90732,2759.2,2758.5,1.122552]
[1645987515404,1.86082,2759.2,2758.5,1.122552]
[1645987515604,1.86082,2759.2,2757.8,0.25]
[1645987515605,1.2189144,2759.0,2757.8,0.25]
[1645987515806,1.81483,2758.8,2757.8,1.372552]
[1645987516004,1.81483,2758.8,2757.8,1.122552]
[1645987516208,2.11483,2758.8,2757.8,1.122552]
[1645987516654,2.11483,2758.8,2758.2,0.00590105]
[1645987516852,4.40742,2758.7,2758.2,0.00590105]
[1645987517057,5.28929337,2758.7,2758.2,0.00590105]
[1645987517256,19.5,2758.5,2757.7,0.02360774]
[1645987517455,16.89656,2758.4,2757.7,0.02360774]
[1645987517657,17.07664108,2758.4,2757.2,0.00096]
[1645987517860,18.73734108,2758.4,2756.9,0.00096]
[1645987518055,1.3756059,2757.8,2756.9,0.00096]
[1645987518254,11.06,2758.1,2756.9,0.00096]
[1645987518255,0.3,2757.9,2756.9,0.00096]
[1645987518455,0.3,2757.9,2756.7,0.00096]
[1645987518858,0.521,2757.9,2756.7,0.00096]
[1645987519057,3.5,2757.8,2756.7,0.00096]
[1645987519257,0.90771,2757.6,2756.7,0.00096]
[1645987519460,1.14879623,2756.9,2756.7,0.00096]
[1645987519663,3.8607096,2756.8,2755.7,3.1380961]
[1645987519862,3.5,2756.7,2755.5,1.122552]
[1645987520098,4.021,2756.7,2755.5,1.122552]
[1645987520301,2.72906,2756.7,2755.1,0.08467133]
[1645987520508,2.72906,2756.7,2755.0,0.65091298]
[1645987520509,2.42906,2756.7,2756.3,1.122552]
[1645987520702,0.90806,2756.7,2756.3,1.122552]
[1645987520904,1.0,2756.8,2756.3,1.122552]
[1645987521103,0.3,2756.9,2756.3,1.122552]
[1645987521305,3.15123649,2756.9,2756.1,1.122552]
[1645987521506,3.5,2756.8,2755.8,1.122552]
[1645987521705,2.93537649,2756.9,2756.4,0.0059008]
[1645987521903,1.0,2756.8,2756.4,0.0059008]
[1645987522107,3.5,2756.7,2756.4,0.0059008]
[1645987522308,4.8,2756.7,2756.4,0.0059008]
[1645987522507,4.8,2756.7,2755.7,1.122552]
[1645987522508,0.8817096,2756.6,2755.7,1.122552]
[1645987522710,0.90814,2756.4,2755.7,1.122552]
[1645987522907,0.90814,2756.4,2756.0,0.02360673]
[1645987523309,1.20814,2756.4,2756.0,0.02360673]
[1645987523709,3.5,2756.3,2755.8,0.00096]
[1645987523954,3.5,2756.3,2755.5,0.00096]
[1645987523955,0.8817096,2756.2,2755.5,0.00096]
[1645987524155,3.5,2756.1,2755.6,0.02360779]
[1645987524350,1.18318533,2755.9,2755.6,0.02360779]
[1645987524551,4.40842,2755.8,2755.6,0.02360779]
[1645987524752,3.5,2755.7,2755.6,0.02360779]
[1645987525051,1.81689,2755.5,2755.1,0.00833545]
[1645987526051,1.39596229,2755.4,2754.9,1.122552]
[1645987526251,4.89596229,2755.4,2754.9,1.122552]
[1645987526451,4.89596229,2755.4,2755.2,0.00208385]
[1645987526652,0.90844,2755.3,2755.2,0.00208385]
[1645987527451,0.90844,2755.3,2754.9,1.122552]
[1645987527694,1.0,2755.4,2755.1,1.12463589]
[1645987527893,1.0,2755.5,2755.1,0.00208389]
[1645987528091,0.90827,2755.6,2755.4,1.122552]
[1645987528697,0.90827,2755.6,2754.4,0.00096]
[1645987528896,0.90827,2755.6,2755.4,0.00590555]
[1645987529697,0.90827,2755.6,2755.2,1.122552]
[1645987529898,0.90827,2755.6,2755.4,0.00590555]
[1645987530099,1.20827,2755.6,2755.4,0.00590555]
[1645987530296,0.90827,2755.6,2755.4,0.00590555]
[1645987530596,1.20827,2755.6,2755.4,0.00590555]
[1645987530998,1.20827,2755.6,2755.2,1.122552]
[1645987531198,1.20827,2755.6,2755.4,0.00590555]
[1645987532055,1.20827,2755.6,2755.2,1.122552]
[1645987532254,0.02117738,2755.5,2755.2,1.122552]
[1645987533060,0.02117738,2755.5,2755.4,1.122552]
[1645987533464,3.75719891,2756.6,2755.5,0.04235476]
[1645987533659,3.75719891,2756.6,2756.2,1.122552]
[1645987534660,3.75719891,2756.6,2755.5,0.04331476]
[1645987534860,3.75719891,2756.6,2756.0,1.122552]
[1645987535093,8.39306767,2757.8,2756.5,1.122552]
[1645987535297,8.39306767,2757.8,2756.6,0.00096]
[1645987535298,0.521,2757.4,2756.6,0.00096]
[1645987535500,0.521,2757.4,2757.0,1.122552]
[1645987535801,0.90771,2757.7,2757.3,1.122552]
[1645987536004,0.90771,2757.7,2757.3,1.072552]
[1645987536199,0.31768108,2758.6,2757.3,1.072552]
[1645987536200,20.6677065,2759.1,2757.3,1.072552]
[1645987536398,0.521,2758.6,2757.4,0.00096]
[1645987536600,18.00126574,2759.7,2757.7,5.0]
[1645987536601,1.51250272,2759.2,2757.7,5.0]
[1645987536798,1.81514,2758.9,2757.8,3.5]
[1645987537105,0.18008108,2759.4,2757.2,2.20336]
[1645987537106,10.28236302,2759.6,2758.5,6.5]
[1645987537400,0.25,2759.6,2758.2,5.0]
[1645987537600,0.1576,2759.5,2758.5,0.00096]
[1645987537797,0.4092,2759.5,2758.3,0.00096]
[1645987538000,0.4044,2759.5,2758.3,0.00096]
[1645987538200,11.2016,2759.6,2758.3,0.00096]
[1645987538401,11.2024,2759.6,2758.5,0.002083]
[1645987538607,0.90755,2758.6,2758.3,0.00096]
[1645987538851,0.90755,2758.6,2757.9,0.00833372]
[1645987539246,0.90755,2758.6,2757.9,0.00929372]
[1645987539446,8.0,2758.5,2757.6,0.25]
[1645987539646,8.0,2758.5,2757.4,5.0]
[1645987539847,1.81513,2758.3,2757.4,5.0]
[1645987540254,2.11513,2758.3,2757.4,5.0]
[1645987540750,2.11513,2758.3,2757.2,1.5917]
[1645987540951,2.11513,2758.3,2757.1,0.3607]
[1645987541154,2.11513,2758.3,2757.5,5.0]
[1645987541357,0.90756,2758.0,2757.5,5.0]
[1645987541553,0.90756,2758.0,2757.5,1.20885915]
[1645987541752,1.20756,2758.0,2756.7,3.75]
[1645987541952,1.81523,2757.9,2757.2,5.0]
[1645987542152,1.81523,2757.9,2757.2,5.08620001]
[1645987542597,1.81523,2757.9,2757.2,0.08620001]
[1645987543000,12.87523,2757.9,2757.2,0.08620001]
[1645987543202,0.521,2757.8,2757.4,0.00590522]
[1645987543507,13.78383,2757.6,2757.4,0.09210171]
[1645987543807,0.90791,2757.3,2756.8,0.00096]
[1645987544010,0.90791,2757.3,2756.6,1.34270445]
[1645987544201,0.90791,2757.3,2756.4,25.3884777]
[1645987544202,1.81583,2757.1,2756.4,25.3884777]
[1645987544505,3.5,2757.0,2756.4,25.3884777]
[1645987544701,3.5,2757.0,2756.4,5.0]
[1645987544901,1.0,2757.0,2756.4,5.0]
[1645987545305,2.41583,2757.1,2756.4,5.0]
[1645987545505,0.3,2757.1,2756.4,5.0]
[1645987545702,7.52374,2757.2,2756.3,1.20018099]
[1645987545703,2.72393,2756.9,2756.8,5.0]
[1645987546103,3.72393,2756.9,2756.8,5.0]
[1645987546366,1.0,2756.9,2756.8,5.0]
[1645987546752,0.90786,2757.0,2756.8,6.4438596]
[1645987546953,0.90786,2757.0,2756.8,5.0]
[1645987548054,0.90786,2757.0,2756.8,4.95590966]
[1645987549054,0.90786,2757.0,2756.8,4.95]
[1645987549255,0.90786,2757.0,2756.8,4.95590966]
[1645987550094,0.23461728,2757.0,2756.8,4.40275727]
[1645987550497,0.23461728,2757.0,2756.8,4.40866693]
[1645987551001,0.00590886,2757.1,2756.9,19.0]
[1645987551201,0.00590886,2757.1,2757.0,4.40275727]
[1645987551403,2.72383,2757.6,2757.0,4.40275727]
[1645987551597,2.72383,2757.6,2757.0,0.3607]
[1645987551798,2.72383,2757.6,2757.5,4.40275727]
[1645987551997,2.72383,2757.6,2757.5,5.60392008]
[1645987552599,2.72383,2757.6,2757.1,0.00096]
[1645987552799,2.72383,2757.6,2757.5,4.40275727]
[1645987553501,2.72383,2757.6,2757.5,4.26435727]
[1645987554160,3.72383,2757.6,2757.5,4.26435727]
[1645987554360,3.72383,2757.6,2757.1,0.00096]
[1645987554361,3.72383,2757.6,2757.2,4.26435727]
[1645987554958,3.72383,2757.6,2756.9,4.30135341]
[1645987555163,0.0059087,2757.5,2757.2,4.26435727]
[1645987555462,0.0059087,2757.5,2757.0,4.26531727]
[1645987555664,2.72342,2757.4,2757.0,4.26435727]
[1645987556064,3.72342,2757.4,2757.0,4.26435727]
[1645987556469,0.00563939,2757.3,2757.0,4.26435727]
[1645987556665,0.90768,2757.2,2756.9,0.04263651]
[1645987556864,0.90768,2757.2,2757.1,4.26435727]
[1645987557799,0.90768,2757.2,2756.9,0.0056403]
[1645987558402,0.90768,2757.2,2757.0,4.26435727]
[1645987558605,1e-08,2757.2,2757.0,4.26435727]
[1645987559013,0.00563952,2757.2,2757.0,4.26435727]
[1645987559809,1e-08,2757.2,2757.0,4.26435727]
[1645987560008,0.00590893,2757.2,2757.0,4.26435727]
[1645987561010,1e-08,2757.2,2757.0,4.26435727]
[1645987561211,0.00590893,2757.2,2757.0,4.26435727]
[1645987561460,0.90761,2757.1,2757.0,4.26435727]
[1645987562257,1.81537001,2757.2,2757.0,4.28145435]
[1645987562458,1.82127897,2757.2,2757.0,4.28145435]
[1645987563460,1.81537001,2757.2,2757.0,4.28145435]
[1645987563659,1.82127893,2757.2,2757.0,4.28145435]
[1645987564060,1.82127893,2757.2,2757.0,0.01709708]
[1645987564268,3.8,2757.1,2756.9,0.00590973]
[1645987564659,1.81587,2757.0,2756.8,4.26435727]
[1645987564860,1.81587,2757.0,2756.9,0.00590959]
[1645987565902,1.81587,2757.0,2755.9,0.00096]
[1645987566097,1.81587,2757.0,2756.8,0.00590963]
[1645987567100,1.81587,2757.0,2756.1,0.00096]
[1645987567299,1.81587,2757.0,2756.8,0.00590966]
[1645987568299,1.81587,2757.0,2756.2,0.00096]
[1645987568499,1.81587,2757.0,2756.8,0.00590966]
[1645987569344,0.90768,2757.0,2756.2,0.02364371]
[1645987569549,0.90768,2757.0,2755.8,0.00096]
[1645987569746,0.90768,2757.0,2756.8,0.00590966]
[1645987569747,4.40768,2757.0,2756.8,0.00590966]
[1645987570045,0.3,2757.1,2756.8,0.00590966]
[1645987570449,5.39458448,2757.2,2756.8,0.00590966]
[1645987570649,6.39458448,2757.2,2756.0,0.00096]
[1645987570849,4.6303431,2757.1,2756.0,0.00096]
[1645987571250,5.6303431,2757.1,2756.0,0.00096]
[1645987571848,0.90768,2757.0,2756.0,0.00096]
[1645987572710,1.81569,2756.7,2756.0,0.00096]
[1645987572909,1.81569,2756.7,2755.9,1.06618964]
[1645987573112,1.81569,2756.7,2755.9,1.21128964]
[1645987573513,1.81569,2756.7,2755.9,0.1451]
[1645987573714,1.81569,2756.7,2755.8,0.14606]
[1645987573715,2.11569,2756.7,2755.8,0.14606]
[1645987574010,2.11569,2756.7,2755.8,0.00096]
[1645987574214,5.61569,2756.7,2755.6,0.00096]
[1645987574410,3.5,2756.6,2755.6,0.00096]
[1645987574616,3.5,2756.6,2756.1,0.00591015]
[1645987574811,9.5,2756.5,2755.7,0.02364415]
[1645987575014,13.0,2756.5,2755.7,0.02364415]
[1645987575217,14.0,2756.5,2755.7,0.02364415]
[1645987575415,14.0,2756.5,2755.6,0.00096]
[1645987575615,14.3,2756.5,2755.6,0.00096]
[1645987575816,0.90827,2756.2,2755.6,0.00096]
[1645987576019,3.5,2756.1,2755.5,0.04235476]
[1645987576452,1.00742745,2756.2,2755.5,0.04235476]
[1645987576854,0.90827,2756.2,2755.5,0.04235476]
[1645987577455,2.72481,2756.0,2755.5,0.04235476]
[1645987577657,0.90827,2756.2,2755.5,0.04235476]
[1645987578658,0.90827,2756.2,2755.7,1.16116975]
[1645987578859,0.90827,2756.2,2755.5,0.04235476]
[1645987579258,0.90827,2756.2,2755.8,0.00591235]
[1645987580131,2.7243,2756.6,2755.9,0.90811]
[1645987580323,3.0243,2756.6,2755.9,0.90811]
[1645987580823,0.90827,2756.2,2755.9,0.91402232]
[1645987581423,0.90827,2756.2,2755.9,0.90811]
[1645987581825,2.81588,2756.5,2756.0,10.0]
[1645987582229,2.81588,2756.5,2756.3,1.17878287]
[1645987582424,2.81588,2756.5,2756.3,2.08673287]
[1645987582624,1.81588,2756.5,2756.3,2.08673287]
[1645987582827,2.81588,2756.5,2756.3,2.08673287]
[1645987583124,1.81588,2756.5,2756.3,2.08673287]
[1645987583327,1.82148058,2756.9,2756.5,21.0]
[1645987583528,1.82148058,2756.9,2756.7,0.90771]
[1645987583529,0.00591058,2756.9,2756.7,0.90771]
[1645987583725,4.3718,2757.7,2756.7,0.90771]
[1645987583726,3.1538,2757.7,2756.9,16.5]
[1645987583960,3.33770704,2757.9,2756.9,16.5]
[1645987584161,3.33770704,2757.9,2757.2,1.22319777]
[1645987584358,0.90757,2757.4,2757.2,1.22319777]
[1645987585157,0.90757,2757.4,2757.1,0.90755]
[1645987586260,0.90757,2757.4,2757.1,0.90657]
[1645987586859,1.20757,2757.4,2757.1,0.90657]
[1645987587058,1.20757,2757.4,2756.9,1.8151]
[1645987587907,0.00591087,2757.3,2756.9,1.8151]
[1645987588112,2.72942087,2757.3,2756.9,1.8151]
[1645987588306,3.72942087,2757.3,2756.9,1.8151]
[1645987588707,3.72351,2757.3,2756.9,1.8151]
[1645987589106,0.0059109,2757.2,2756.9,1.8151]
[1645987589906,3.72351,2757.3,2756.9,1.8151]
[1645987590111,0.00591094,2757.2,2756.9,1.8151]
[1645987591113,3.72351,2757.3,2756.9,1.8151]
[1645987591374,0.00591094,2757.2,2756.9,1.8151]
[1645987591575,0.00591094,2757.2,2756.8,1.81567]
[1645987592378,3.72351,2757.3,2756.8,1.81567]
[1645987592577,0.00591098,2757.1,2756.8,1.81567]
[1645987592779,0.90781,2757.0,2756.8,1.81567]
[1645987592977,0.90781,2757.0,2756.8,3.09672151]
[1645987593777,0.91372105,2757.0,2756.8,3.09672151]
[1645987593981,0.91372105,2757.0,2756.9,3.5]
[1645987594280,0.00591105,2757.0,2756.9,3.5]
[1645987594478,0.90758,2757.4,2757.0,20.0]
[1645987595518,0.90758,2757.4,2757.1,0.90754]
[1645987596118,0.91349079,2757.4,2757.2,1.09601565]
[1645987597019,0.00591079,2757.4,2757.3,3.5]
[1645987597219,0.90745,2757.7,2757.3,3.5]
[1645987597418,1.0,2758.2,2757.4,15.0]
[1645987597419,2.81472,2758.2,2757.4,15.0]
[1645987597618,1.81472,2758.2,2757.5,3.5]
[1645987597823,2.81472,2758.2,2757.5,3.5]
[1645987598018,1.81472,2758.2,2757.5,3.5]
[1645987598221,2.81472,2758.2,2757.8,1.21959876]
[1645987598419,2.81472,2758.2,2757.9,1.81475]
[1645987598420,1.81472,2758.2,2757.9,1.81475]
[1645987598620,0.00591034,2758.0,2757.9,1.81475]
[1645987598857,0.91326034,2758.0,2757.9,1.81475]
[1645987599659,0.90735,2758.0,2757.9,1.81475]
[1645987601067,2.81472,2758.2,2757.9,1.81475]
[1645987601068,0.18939088,2758.8,2757.9,26.31475]
[1645987601274,1.1712,2759.1,2758.0,24.98892]
[1645987601275,2.26700704,2759.1,2758.0,24.98892]
[1645987601476,2.26700704,2759.1,2758.1,3.5]
[1645987601767,0.90711,2758.8,2758.1,4.40708]
[1645987601969,0.90711,2758.8,2758.3,1.31974809]
[1645987602171,0.90711,2758.8,2758.1,0.90708]
[1645987604605,0.00591262,2758.6,2758.1,0.90708]
[1645987605105,1.45978493,2759.3,2758.9,2.72173]
[1645987605312,1.28864267,2758.5,2758.3,0.25]
[1645987605513,0.3,2759.3,2758.2,5.7197]
[1645987605514,2.80555267,2759.6,2758.2,4.0]
[1645987605710,3.32655267,2759.6,2758.1,10.30683]
[1645987605911,3.32655267,2759.6,2758.3,3.62905]
[1645987606550,4.32655267,2759.6,2758.8,0.9073]
[1645987606750,1.521,2759.6,2759.1,1.37465571]
[1645987606950,1.521,2759.6,2758.7,1.8146]
[1645987606951,6.5,2759.5,2758.7,1.8146]
[1645987607250,7.8,2759.5,2758.7,1.8146]
[1645987607850,7.8,2759.5,2758.7,3.23878293]
[1645987607851,0.90724,2759.3,2758.7,3.23878293]
[1645987608058,1.20724,2759.3,2758.7,3.23878293]
[1645987608653,1.20724,2759.3,2759.1,0.90719]
[1645987609454,1.21315479,2759.3,2759.1,0.90719]
[1645987610303,1.20724,2759.3,2759.1,0.90719]
[1645987610808,1.21315479,2759.3,2759.1,0.90719]
[1645987611206,3.72147,2759.4,2758.9,1.81438]
[1645987611707,0.90724,2759.3,2758.9,1.81438]
[1645987612507,0.90724,2759.3,2759.1,0.90719]
[1645987613317,1.20724,2759.3,2759.1,0.90719]
[1645987615357,1.20724,2759.3,2759.1,0.07121482]
[1645987616760,0.90724,2759.3,2759.1,0.07121482]
[1645987618303,0.90724,2759.3,2758.9,1.81438]
[1645987618505,0.73247088,2759.3,2758.9,1.81438]
[1645987619500,0.73247088,2759.3,2759.1,0.90719]
[1645987621113,0.73247088,2759.3,2758.9,1.81438]
[1645987621364,0.73247088,2759.3,2758.2,0.02366873]
[1645987621365,0.88187337,2759.2,2758.2,0.02366873]
[1645987621560,2.72238,2759.1,2758.2,0.02366873]
[1645987621760,3.54338,2759.1,2758.2,0.02366873]
[1645987621959,0.90746,2758.9,2758.2,0.02366873]
[1645987622359,1.20746,2758.9,2757.7,3.4887]
[1645987622565,1.72846,2758.9,2758.1,0.00591645]
[1645987623568,1.72846,2758.9,2758.3,3.62905]
[1645987623770,1.72846,2758.9,2758.1,0.00591638]
[1645987624169,2.26239148,2758.9,2758.1,0.00591638]
[1645987624368,0.36087337,2758.8,2758.1,0.00591638]
[1645987624569,11.96754,2758.6,2758.0,0.90747]
[1645987624770,0.521,2758.5,2757.6,4.33900624]
[1645987624969,1.14973058,2758.0,2757.2,1.8154]
[1645987625213,0.36087337,2757.9,2757.2,1.8154]
[1645987625414,0.66087337,2757.9,2757.2,1.8154]
[1645987626317,7.5,2757.8,2757.2,1.8154]
[1645987626712,9.40775,2757.8,2757.2,1.8154]
[1645987628313,9.40775,2757.8,2757.1,1.81545]
[1645987628712,0.521,2757.7,2756.7,3.87992]
[1645987628963,0.9079,2757.5,2756.8,0.90791]
[1645987629357,1.2079,2757.5,2756.8,0.90791]
[1645987629956,0.9079,2757.5,2757.1,1.01803949]
[1645987630161,0.9079,2757.5,2757.1,2.7229818]
[1645987630961,0.9079,2757.5,2757.2,0.00591681]
[1645987631968,0.9079,2757.5,2757.1,3.6306377]
[1645987632261,0.9079,2757.5,2757.2,0.00591678]
[1645987633109,0.9079,2757.5,2757.1,3.6306377]
[1645987633507,0.9079,2757.5,2757.2,0.00591678]
[1645987634515,0.9079,2757.5,2757.1,2.7229818]
[1645987634715,0.9079,2757.5,2757.2,0.00591678]
[1645987635414,8.5,2757.5,2757.1,0.90767]
[1645987635616,8.5,2757.5,2757.1,0.80767]
[1645987635814,8.5,2757.5,2757.2,0.00559411]
[1645987635815,2.72363,2757.4,2757.2,0.00559411]
[1645987636015,2.72363,2757.4,2756.8,0.93027979]
[1645987636016,9.5,2757.3,2756.8,0.93027979]
[1645987636455,10.5,2757.3,2756.8,0.93027979]
[1645987636858,10.5,2757.3,2756.8,0.9079]
[1645987639464,10.5,2757.3,2756.9,0.00591451]
[1645987640312,10.5,2757.3,2756.8,0.9079]
[1645987640710,10.5,2757.3,2757.0,0.00591447]
[1645987640911,10.5,2757.3,2756.8,0.9079]
[1645987641312,1.0,2757.3,2756.8,0.9079]
[1645987641712,3.72363,2757.4,2756.8,0.9079]
[1645987641915,2.72363,2757.4,2756.8,0.9079]
[1645987642110,3.72363,2757.4,2756.8,0.9079]
[1645987642513,2.2707037,2757.4,2757.1,1.40636626]
[1645987642716,1.2707037,2757.4,2757.1,2.31412626]
[1645987643114,1.2707037,2757.4,2757.1,3.22186066]
[1645987643853,1.2707037,2757.4,2757.1,1.8154944]
[1645987644258,3.5,2757.3,2756.9,0.0059149]
[1645987644462,1.27661747,2757.4,2756.9,0.0059149]
[1645987644658,1.0,2757.3,2756.9,0.0059149]
[1645987644858,1.27661747,2757.4,2756.9,0.0059149]
[1645987645259,1.2707037,2757.4,2756.7,5.58891281]
[1645987645460,0.00591367,2757.3,2757.1,0.90776]
[1645987645661,0.00591367,2757.3,2756.9,0.00591469]
[1645987646464,1.2707037,2757.4,2756.7,4.5377614]
[1645987646763,0.00591367,2757.3,2757.1,1.8154516]
[1645987646969,0.00591367,2757.3,2757.2,1.02547375]
[1645987647364,0.00591367,2757.3,2757.1,1.8154516]
[1645987647628,1.2707037,2757.4,2757.1,1.8154516]
[1645987647815,1.27661747,2757.4,2757.1,1.8154516]
[1645987648818,1.2707037,2757.4,2757.1,1.8154516]
[1645987649017,0.90198633,2757.5,2757.1,0.6402332]
[1645987649218,0.00591377,2757.4,2757.1,0.6402332]
[1645987650020,0.90198633,2757.5,2757.1,0.6402332]
[1645987650323,0.00591377,2757.4,2757.1,0.6402332]
[1645987650520,2.72954377,2757.4,2757.1,0.6402332]
[1645987650719,3.72954377,2757.4,2757.1,0.6402332]
[1645987651125,3.72363,2757.4,2757.1,0.6402332]
[1645987651362,3.72954377,2757.4,2757.1,0.6402332]
[1645987652366,3.72363,2757.4,2757.1,0.6402332]
[1645987652567,3.72954377,2757.4,2757.1,0.6402332]
[1645987653569,3.72363,2757.4,2757.1,0.6402332]
[1645987653769,3.72954377,2757.4,2757.1,0.6402332]
[1645987654570,3.72954377,2757.4,2757.1,0.5202332]
[1645987654777,3.72363,2757.4,2757.1,0.5202332]
[1645987655209,3.72954377,2757.4,2757.1,0.5202332]
[1645987655808,2.27666302,2757.4,2757.1,0.5202332]
[1645987656009,1.27074925,2757.4,2757.1,1.65909304]
[1645987656209,1.27666302,2757.4,2757.1,0.5202332]
[1645987657211,1.27074925,2757.4,2757.1,0.5202332]
[1645987657810,1.27666302,2757.4,2757.1,0.5202332]
[1645987658411,1.27074925,2757.4,2757.1,0.5202332]
[1645987658855,1.27666302,2757.4,2757.1,0.5202332]
[1645987659659,1.27074925,2757.4,2757.1,0.5202332]
[1645987659859,1.27666302,2757.4,2757.1,0.5202332]
[1645987660868,1.27074925,2757.4,2757.1,0.5202332]
[1645987661063,1.27666302,2757.4,2757.1,0.5202332]
[1645987662164,1.27074925,2757.4,2757.1,0.5202332]
[1645987662366,1.27666302,2757.4,2757.1,0.5202332]
[1645987663605,1.27627427,2757.4,2757.1,0.5202332]
[1645987665711,1.27074925,2757.4,2757.1,0.5202332]
[1645987665911,1.27627427,2757.4,2757.1,0.5202332]
[1645987666110,1.27627427,2757.4,2757.1,1.4279243]
[1645987666366,1.27627427,2757.4,2757.2,1.81533]
[1645987666866,1.27074925,2757.4,2757.2,1.81533]
[1645987667065,1.27666298,2757.4,2757.2,1.81533]
[1645987667764,0.00591373,2757.4,2757.2,0.5448238]
[1645987667969,2.20198633,2757.5,2757.2,0.5448238]
[1645987668166,1.90198633,2757.5,2757.2,0.5448238]
[1645987668466,0.00591373,2757.4,2757.2,0.5448238]
[1645987668864,2.72954373,2757.4,2757.2,0.5448238]
[1645987669265,3.72363,2757.4,2757.2,0.5448238]
[1645987669467,2.72954373,2757.4,2757.2,0.5448238]
[1645987669667,3.72954373,2757.4,2757.2,0.5448238]
[1645987670523,5.98611513,2757.4,2757.2,0.5448238]
[1645987670721,5.99202886,2757.4,2757.2,0.5448238]
[1645987671722,5.98611513,2757.4,2757.2,0.5448238]
[1645987671921,5.99202886,2757.4,2757.2,0.5448238]
[1645987672320,3.72954373,2757.4,2757.2,0.5448238]
[1645987672520,5.99202886,2757.4,2757.2,0.5448238]
[1645987672922,5.98611513,2757.4,2757.2,0.5448238]
[1645987673225,3.72954373,2757.4,2757.2,0.5448238]
[1645987673422,5.99202886,2757.4,2757.2,0.5448238]
[1645987673622,2.26248513,2757.3,2757.2,0.5448238]
[1645987673865,3.72954373,2757.4,2757.2,0.5448238]
[1645987673866,5.99202886,2757.4,2757.2,0.5448238]
[1645987674065,5.98611513,2757.4,2757.2,0.5448238]
[1645987674265,5.9920289,2757.4,2757.2,0.5448238]
[1645987674868,3.72954377,2757.4,2757.2,0.5448238]
[1645987675369,5.98611513,2757.4,2757.2,0.5448238]
[1645987675570,5.99202886,2757.4,2757.2,0.5448238]
[1645987676368,5.98611513,2757.4,2757.2,0.5448238]
[1645987676572,2.26248513,2757.3,2757.2,0.5448238]
[1645987677072,2.56248513,2757.3,2757.2,0.38098262]
[1645987677273,3.58299879,2757.3,2757.2,0.38098262]
[1645987677712,1.32051366,2757.3,2757.2,0.38098262]
[1645987678111,0.32051366,2757.3,2757.2,0.38098262]
[1645987678315,0.02051366,2757.3,2757.2,0.38098262]
[1645987679113,2.28299879,2757.3,2757.2,0.38098262]
[1645987679912,0.02051366,2757.3,2757.2,0.38098262]
[1645987680110,0.02051366,2757.3,2756.9,1.821298]
[1645987680313,0.02051366,2757.3,2756.9,1.8272129]
[1645987680314,2.30976751,2757.3,2756.9,1.8272129]
[1645987680515,2.30976751,2757.3,2756.9,1.821298]
[1645987681115,0.90779,2757.1,2756.9,2.729088]
[1645987681361,0.90779,2757.1,2756.9,2.7231731]
[1645987681560,0.90779,2757.1,2756.9,2.7284039]
[1645987682461,0.90779,2757.1,2756.9,2.7231731]
[1645987682667,0.90779,2757.1,2756.9,2.72840378]
[1645987683668,0.90779,2757.1,2756.9,2.7231731]
[1645987683867,0.90779,2757.1,2756.9,2.72840378]
[1645987684770,0.90779,2757.1,2756.9,2.7231731]
[1645987685213,0.90779,2757.1,2756.9,2.72908765]
[1645987686021,0.90779,2757.1,2756.9,2.7231731]
[1645987686215,0.90779,2757.1,2756.9,2.72908765]
[1645987686415,0.90779,2757.1,2757.0,1.19042185]
[1645987686915,0.92830533,2757.1,2757.0,1.19042185]
[1645987688317,1.36e-05,2757.3,2757.1,21.2684]
[1645987688523,2.28925385,2757.8,2757.1,22.1757533]
[1645987688719,1.36e-05,2757.3,2757.2,3.52733]
[1645987688976,2.28925385,2758.0,2757.3,21.3607]
[1645987689174,7.31261641,2758.6,2757.5,0.3607]
[1645987689175,2.28925385,2758.1,2757.5,0.3607]
[1645987689375,2.28925385,2758.3,2757.6,1.12159127]
[1645987689775,3.19652385,2758.3,2757.6,1.12159127]
[1645987690183,0.90727,2758.3,2758.2,1.17775264]
[1645987690379,4.10379385,2758.5,2758.2,1.17775264]
[1645987690380,2.28925385,2758.5,2758.2,1.17775264]
[1645987690880,2.28925385,2758.6,2758.2,1.53845264]
[1645987691381,3.2842,2759.5,2758.2,1.53845264]
[1645987691382,2.28925385,2758.8,2758.7,2.13142718]
[1645987691678,2.28925385,2758.8,2758.7,2.40501405]
[1645987692480,4.10942649,2758.9,2758.7,2.40501405]
[1645987692931,3.20227649,2758.9,2758.7,2.40501405]
[1645987693129,2.28925385,2758.8,2758.7,2.40501405]
[1645987693429,3.20227646,2758.9,2758.7,2.40501405]
[1645987693630,3.20227646,2758.9,2758.7,1.18068687]
[1645987694527,3.19636385,2758.9,2758.7,1.18068687]
[1645987694728,3.20227646,2758.9,2758.7,1.18068687]
[1645987695028,0.91302261,2758.9,2758.7,1.18068687]
[1645987695629,0.90711,2758.9,2758.7,1.18068687]
[1645987695828,0.91302261,2758.9,2758.7,1.18068687]
[1645987696766,3.19636385,2758.9,2758.6,1.68077947]
[1645987696966,0.90711,2758.9,2758.8,0.03021376]
[1645987697167,1.00570961,2758.9,2758.8,0.03021376]